[Event "Sautron op 13th"]
[Site "Sautron"]
[Date "2013.11.02"]
[Round "9"]
[White "Lagarde, Maxime"]
[Black "Ider, Borya"]
[Result "1/2-1/2"]
[ECO "E11"]
[WhiteElo "2523"]
[BlackElo "2377"]
[Annotator "RR"]
[PlyCount "198"]
[EventDate "2013.10.26"]
[EventType "swiss"]
[EventRounds "9"]
[EventCountry "FRA"]
[SourceTitle "EXT 2014"]
[Source "ChessBase"]
[SourceDate "2013.11.20"]
[SourceVersion "1"]
[SourceVersionDate "2013.11.20"]
[SourceQuality "1"]
[TimeControl "40/5400+30:1800+30"]
[WhiteClock "1:30:00"]
[BlackClock "1:30:00"]

1. d4 {[%emt 0:09:39]} e6 {[%emt 0:00:50]} 2. c4 {[%emt 0:00:08]} Nf6 {[%emt 0:
00:11]} 3. Nf3 {[%emt 0:00:09]} Bb4+ {[%emt 0:03:26]} (3... Nc6 4. g3 Bb4+ 5.
Bd2 Qe7 6. Bg2 Bxd2+ (6... O-O $143 7. O-O Bxd2 8. Qxd2 d6 9. Nc3 $16) 7. Nbxd2
d6 8. O-O a5 (8... O-O 9. e4 e5 10. d5 Nb8 11. Ne1 a5 12. Nd3 Na6 13. a3 Bg4
14. f3 Bd7 15. b4 c6 16. bxa5 cxd5 17. cxd5 Bb5 18. Qb3 Nc7 19. Nc4 $14) 9. e4
e5 10. d5 Nb8 11. Ne1 h5 12. Nef3 Nbd7 13. Qe2 Nc5 14. h3 c6 15. b3 O-O 16. a3
cxd5 17. cxd5 Bd7 18. Rfc1 Rfc8 19. Qe3 b5 20. Rc2 $14 {Eljanov,P (2455)
-Alexandrova,O (2400) Alushta 2000 (1) 1-0}) 4. Bd2 {[%emt 0:00:12]} Qe7 {
[%emt 0:00:05]} 5. g3 {[%emt 0:00:04]} Nc6 {[%emt 0:00:10]} 6. Nc3 {[%emt 0:00:
04]} (6. Bg2) 6... O-O {[%emt 0:00:55]} 7. Bg2 {[%emt 0:01:51]} d6 {[%emt 0:00:
09]} 8. O-O {[%emt 0:02:34]} Bxc3 {[%emt 0:01:24]} 9. Bxc3 {[%emt 0:00:05]} e5
{[%emt 0:00:27]} 10. Qc2 {[%emt 0:04:37]} (10. d5 Nb8 11. Nd2 a5 12. b3 c5 13.
e4 Nbd7 14. Qc2 h6 15. f4 Nh7 16. Rae1 b6 17. Nf3 a4 18. bxa4 Ra6 19. Rb1 Nhf6
20. f5 Bb7 21. a5 Rfa8 22. Rb2 Bc8 23. Rfb1 bxa5 24. Nd2 a4 25. a3 Qd8 26. h3
Rb6 27. Rxb6 Nxb6 28. Kh2 Qc7 29. g4 Nbd7 30. Bf3 Nf8 31. h4 g5 32. hxg5 hxg5
33. Kg3 Ne8 34. Be2 f6 35. Qb2 Qh7 36. Nf3 Qc7 37. Qb6 Qxb6 38. Rxb6 Nd7 39.
Rb5 Nc7 {Potkin,V (2647)-Bologan,V (2672) Khanty-Mansiysk 2013 1-0 (63)}) 10...
a5 {[%emt 0:02:39]} 11. d5 {[%emt 0:01:39]} (11. Rad1 Re8 12. dxe5 dxe5 13. Ng5
h6 14. Ne4 {Tal,M (2615)-Petrosian,T (2635) Biel Interzonal playoff 1976 (1) 1/
2}) 11... Nb8 {[%emt 0:00:39][%cal Gb8d7]} 12. Nh4 {[%emt 0:00:10]} Nbd7 {
[%emt 0:12:25]} 13. e4 {[%emt 0:12:28]} Nc5 {[%emt 0:01:47]} 14. Rae1 {[%emt 0:
00:13]} Nh5 $146 {[%emt 0:08:46]} (14... c6 15. f4 exf4 16. Rxf4 Nh5 17. Rff1
Bg4 18. Nf5 Bxf5 19. exf5 Qc7 20. f6 Rae8 21. fxg7 Nxg7 22. Qd2 Rxe1 23. Rxe1
f6 24. Bxa5 b6 25. Bc3 cxd5 26. Bxd5+ Kh8 27. Qh6 {1-0 (27) Hebden,M (2522)
-Worek,J (2226) Hastings 2009}) 15. Qd1 {[%emt 0:16:19]} g6 {[%emt 0:00:30]}
16. f4 $1 {[%emt 0:01:33][%csl Rg7,Rg8]} f6 {[%emt 0:11:52] Il faut tenir les
cases Noires} 17. f5 {[%emt 0:02:19]} Qf7 {[%emt 0:00:28]} 18. b3 {[%emt 0:04:
09]} g5 {[%emt 0:03:03]} 19. Bf3 {[%emt 0:00:58]} (19. Nf3) 19... Nxg3 {
[%emt 0:05:49]} 20. hxg3 {[%emt 0:00:16]} gxh4 {[%emt 0:00:05]} 21. gxh4 {
[%emt 0:10:42]} Kh8 {[%emt 0:00:25]} 22. Kh2 {[%emt 0:00:18]} Bd7 {[%emt 0:00:
17]} 23. Rg1 {[%emt 0:02:01]} b6 {[%emt 0:01:54]} 24. h5 {[%emt 0:04:16]} (24.
Qe2) (24. Rg2 Rg8 25. Reg1) 24... Rg8 {[%emt 0:01:04]} 25. h6 $14 {[%emt 0:00:
36][%csl Gg7,Rh7][%cal Gf3h5] Gagne de l'espace tout en fixant la faiblesse
"h7"} Rxg1 {[%emt 0:00:50]} 26. Rxg1 {[%emt 0:00:05]} Rg8 {[%emt 0:00:06]} 27.
Bd2 {[%emt 0:02:47]} Rxg1 {[%emt 0:00:53]} 28. Qxg1 {[%emt 0:00:07]} Qg8 $11 {
[%emt 0:00:04]} 29. Qe3 {[%emt 0:01:35]} Qf8 {[%emt 0:01:56]} 30. Bd1 {[%emt 0:
06:02][%cal Ga2a3,Gb3b4]} Nb7 {[%emt 0:04:51]} 31. Be1 {[%emt 0:02:29]} Nc5 {
[%emt 0:01:16]} 32. Bh4 {[%emt 0:01:25]} (32. a3 a4 $1 33. b4 Nb3 34. Bxb3 axb3
35. Bd2 b2 36. Qb3 Qe8 {[%cal Ge8h5]}) 32... Be8 {[%emt 0:01:02]} 33. Kg1 {
[%emt 0:01:26]} Kg8 $1 {[%emt 0:00:43][%cal Gg8f7,Gf7e7]} 34. Kf1 {[%emt 0:02:
12]} Kf7 {[%emt 0:03:44]} 35. Bf2 {[%emt 0:03:40]} Ke7 {[%emt 0:00:53]} 36. a3
{[%emt 0:03:13]} a4 $1 {[%emt 0:01:50]} 37. b4 {[%emt 0:00:04]} Nb3 {[%emt 0:
00:03] Un thème classique dans ce genre de structure} 38. c5 {[%emt 0:00:15]}
Bb5+ {[%emt 0:04:41]} 39. Ke1 {[%emt 0:02:22]} bxc5 {[%emt 0:01:58]} 40. bxc5 {
[%emt 0:00:00]} Nxc5 {[%emt 0:00:00] Joué à tempo alors que les Noirs
avaient encore 25 mns à la pendule mais Qa8 méritait analyse} (40... Qa8 $5 {
[%cal Ga8a4]} 41. Bxb3 axb3 42. Qxb3 Qa5+ {Rentrant dans une finale de B de
couleurs opposées}) 41. Qxc5 $1 {[%emt 0:02:27]} dxc5 {[%emt 0:01:52]} 42.
Bxc5+ {[%emt 0:00:03]} Ke8 {[%emt 0:00:14]} 43. Bxf8 {[%emt 0:00:18]} Kxf8 {
[%emt 0:00:03]} 44. Kd2 $14 {[%emt 0:00:06][%csl Ra4][%cal Gd2c3,Gc3b4]} c6 {
[%emt 0:06:26]} 45. d6 {[%emt 0:06:33]} c5 {[%emt 0:00:07][%csl Gb4]} 46. Kc3 {
[%emt 0:02:37]} (46. Bh5 $5 {[%csl Rf8]}) 46... Ke8 {[%emt 0:00:44]} 47. Bh5+ {
[%emt 0:00:49]} Kf8 {[%emt 0:00:05]} (47... Kd7 48. Bg6 $1 {[%csl Gh6]}) 48. d7
{[%emt 0:06:53]} (48. Kd2 Be8 49. Bd1 Bb5 50. Be2 Bc6 {[%csl Re4]} 51. Bd3 Ke8
52. Kc3 Kd7) 48... Bxd7 {[%emt 0:00:14]} 49. Kc4 {[%emt 0:00:03]} Bc6 {[%emt 0:
00:05]} 50. Bf3 {[%emt 0:00:03]} Ke7 {[%emt 0:01:18]} 51. Kxc5 {[%emt 0:01:45]
Malgré la position active du K Blanc, il est difficile pour le GMI de
progresser à cause de la faiblesse "e4"} Kd7 {[%emt 0:00:04]} 52. Kb4 {
[%emt 0:10:11]} Ke7 {[%emt 0:00:25]} 53. Ka5 {[%emt 0:01:45]} Kd7 {[%emt 0:01:
35]} 54. Bh5 {[%emt 0:02:50][%csl Rh7][%cal Gh5g6]} Bxe4 {[%emt 0:00:14]} 55.
Bg6 {[%emt 0:00:07]} Bc2 {[%emt 0:00:04]} 56. Bxh7 {[%emt 0:00:18]} Ke7 {
[%emt 0:00:03]} 57. Bg8 {[%emt 0:00:44]} Kf8 {[%emt 0:00:40]} (57... Bxf5 58.
h7 Bxh7 59. Bxh7) 58. Be6 {[%emt 0:00:04][%csl Rf8] Le K Noir ne peut plus
bouger à cause du P passé et les Blancs ont donc une pièce de plus...} Bd1 {
[%emt 0:01:35]} 59. Kb4 {[%emt 0:01:21]} Bc2 {[%emt 0:00:06]} 60. Kc5 {[%emt 0:
00:11]} (60. Kc3 Bd1) 60... Bb3 {[%emt 0:00:44]} 61. Kb4 {[%emt 0:01:21]} Bd1 {
[%emt 0:00:20]} 62. Kc3 {[%emt 0:00:39]} Bh5 {[%emt 0:01:29]} 63. Kd2 {[%emt 0:
01:48]} Bg4 {[%emt 0:00:12]} 64. Ke3 {[%emt 0:00:08]} Bh5 {[%emt 0:00:21]} 65.
Ke4 {[%emt 0:01:37]} Bd1 {[%emt 0:00:13]} 66. Ke3 {[%emt 0:00:46]} Bh5 {
[%emt 0:00:05]} 67. Kf2 {[%emt 0:00:04]} Bg4 {[%emt 0:00:15]} 68. Kg3 {[%emt 0:
00:53]} Bh5 {[%emt 0:00:06]} 69. Bd7 {[%emt 0:00:36]} Bd1 {[%emt 0:00:05]} 70.
Be6 {[%emt 0:00:10]} Bh5 {[%emt 0:00:04]} 71. Kf2 {[%emt 0:00:57]} Bd1 {
[%emt 0:00:29]} 72. Ke1 {[%emt 0:00:03]} Bc2 {[%emt 0:00:55]} 73. Kd2 {[%emt 0:
00:08]} Bb1 {[%emt 0:00:15]} 74. Kc3 {[%emt 0:00:38]} Be4 {[%emt 0:00:07]} 75.
Kc4 {[%emt 0:01:00]} Bb1 {[%emt 0:00:28]} 76. Kc5 {[%emt 0:01:02]} Bc2 {
[%emt 0:00:09]} 77. Kb5 {[%emt 0:01:37]} Bb3 {[%emt 0:00:23]} 78. Kb4 {[%emt 0:
00:35]} Bc2 {[%emt 0:00:07]} 79. Kc4 {[%emt 0:00:32]} Bb3+ {[%emt 0:00:17]} 80.
Kd3 {[%emt 0:00:08]} Bd1 {[%emt 0:00:08]} 81. Bc4 {[%emt 0:00:59]} Bh5 {
[%emt 0:01:07]} 82. Ke4 {[%emt 0:00:18]} Bg4 {[%emt 0:00:09]} 83. Bb5 {[%emt 0:
00:36]} Bd1 {[%emt 0:00:06]} 84. Kd5 {[%emt 0:00:34]} Bb3+ {[%emt 0:00:22]} 85.
Kd6 {[%emt 0:00:35]} Kf7 {[%emt 0:00:49]} 86. h7 {[%emt 0:00:32] Maxime
LAGARDE avait un mauvais départage et il devait absolument gagner cette
dernière ronde mais ses efforts vont rester vains.} Kg7 {[%emt 0:00:11]} 87.
Ke7 {[%emt 0:00:03]} Kxh7 {[%emt 0:00:53]} 88. Kxf6 {[%emt 0:00:06]} e4 {
[%emt 0:02:56]} 89. Ke7 {[%emt 0:00:29]} e3 {[%emt 0:00:42]} 90. f6 {[%emt 0:
01:02]} Kg6 {[%emt 0:01:22]} 91. Bd3+ {[%emt 0:00:09]} Kg5 {[%emt 0:00:03]} 92.
f7 {[%emt 0:00:18]} Bxf7 {[%emt 0:00:04]} 93. Kxf7 {[%emt 0:00:04]} Kf4 {
[%emt 0:00:02]} 94. Ke6 {[%emt 0:00:20]} Kf3 {[%emt 0:00:03]} 95. Kd5 {[%emt 0:
00:23]} e2 {[%emt 0:00:04]} 96. Bxe2+ {[%emt 0:00:02]} Kxe2 {[%emt 0:00:04]}
97. Kc4 {[%emt 0:00:06]} Ke3 {[%emt 0:00:04]} 98. Kb4 {[%emt 0:00:03]} Kd4 {
[%emt 0:00:03]} 99. Kxa4 {[%emt 0:00:03]} Ke5 1/2-1/2

[Event "Rohde op 12th"]
[Site "Sautron"]
[Date "2012.10.29"]
[Round "4"]
[White "Koziak, Vitali"]
[Black "Drasko, Milan"]
[Result "1-0"]
[ECO "E11"]
[WhiteElo "2503"]
[BlackElo "2471"]
[Annotator "RR"]
[PlyCount "111"]
[EventDate "2012.10.27"]
[EventType "swiss"]
[EventRounds "9"]
[EventCountry "FRA"]
[SourceTitle "EXT 2014"]
[Source "ChessBase"]
[SourceDate "2013.11.20"]
[SourceVersion "1"]
[SourceVersionDate "2013.11.20"]
[SourceQuality "1"]
[TimeControl "40/5400+30:1800+30"]
[WhiteClock "1:30:00"]
[BlackClock "1:30:00"]

1. d4 {[%emt 0:00:00]} e6 {[%emt 0:00:00]} 2. c4 {[%emt 0:01:46]} Nf6 {[%emt 0:
00:00]} 3. g3 {[%emt 0:02:43]} Bb4+ {[%emt 0:00:35]} 4. Bd2 {[%emt 0:01:02]} a5
{[%emt 0:00:19]} (4... Qe7) (4... c5) (4... Be7 5. Bg2 d5 6. Nf3 O-O 7. O-O c6
8. Qc2 b6 9. Rd1 Bb7 (9... a5 10. Bg5 (10. Bf4) 10... Ba6 11. Nbd2 Nbd7 12.
Rac1 h6 13. Bxf6 Bxf6 (13... Nxf6 14. e4 Rc8 (14... dxe4 15. Nxe4 Nxe4 16. Qxe4
) 15. Qb1 (15. e5)) 14. e4 c5 15. exd5 cxd4 16. dxe6 fxe6 17. Qg6 (17. Ne4 e5 (
17... Rc8 18. Nxf6+ Nxf6 19. Rxd4) 18. Nxf6+ Qxf6 (18... Nxf6 19. Nxe5) 19. Nh4
$36) 17... Qe8 18. Qxe8 Raxe8 19. Ne4 e5 20. Ne1 Be7 21. Nd3 {Pelletier,Y 
(2587)-Nguyen Chi Minh (2381) FRA-chT Top 12 2011 (3.3) 1-0}) 10. Nc3 Nbd7 11.
b3 Rc8 12. e4 Nxe4 (12... dxe4 13. Ng5) 13. Nxe4 dxe4 14. Qxe4 Ba8 15. Qe2 {
Witt,R (2248)-Krishnasing,A Bussum op 28th 2011 (5) 1-0} (15. Qe3 c5 16. Bc3 (
16. d5) 16... cxd4 17. Nxd4 (17. Bxd4) 17... Bf6 18. Bxa8 Rxa8 19. Rd2 (19. Rd3
) 19... Qc7 (19... Rc8 20. Rad1) 20. Rad1)) 5. Bg2 {[%emt 0:00:52]} d6 {
[%emt 0:00:26][%cal Ge6e5] Anticipe l'échange des B pour jouer ensuite sur
cases noires au centre.} (5... d5 {Transpose dans une Catalane}) 6. Nf3 {
[%emt 0:06:48]} Nbd7 {[%emt 0:00:30]} 7. O-O {[%emt 0:03:55]} e5 {[%emt 0:00:
36]} (7... Bxd2 8. Qxd2 O-O 9. Nc3 e5 10. Rfd1 Re8 $132 {Dorfman,J (2595)
-Zelcic,R (2514) EU-ch blitz Cannes 2006 (3) 1/2}) 8. Be3 $1 {[%emt 0:05:20]
[%csl Rb4][%cal Ga2a3] La menace a3 va forcer les Noirs а abandonner le centre
et les Blancs vont garder un petit avantage d'espace.} (8. Bg5 exd4 9. Nxd4 h6
10. Bf4 O-O 11. a3 Bc5 12. Nc3 a4 {[%csl Rb3]} 13. Ndb5 $1 $14 {[%csl Rc7,Rd6];
Polaczek,R (2378)-Thomas,N (2286) BCF-chT 1011 (4NCL) 2010 (4.14) 1-0}) 8...
exd4 {[%emt 0:01:13]} (8... O-O 9. a3 exd4 10. Bxd4 Bc5 11. Nc3 $14 {Swiercz,D
(2609)-Vitiugov,N (2691) Chigorin Memorial 20th 2012 (6) 1/2}) 9. Bxd4 {
[%emt 0:00:34]} O-O {[%emt 0:00:52]} 10. Nc3 {[%emt 0:07:25]} (10. a3 Bc5 11.
Nc3 (11. b3 Bxd4 12. Nxd4 Ne5 13. Nc3 c6 $132 {Pelletier,Y (2574)-Nikolova,A 
(2316) Zuerich Jubilee op 2009 (2) 1-0})) 10... Qe7 {[%emt 0:18:42] Fin de la
préparation du GMI} (10... Re8 11. Qc2 c6 12. a3 Bc5 13. Rad1 Qe7 14. Rd2 Bxd4
15. Nxd4 Nb6 16. Qb3 Qc7 17. a4 Nbd7 18. Qc2 Nc5 19. Rfd1 Qb6 20. h3 h6 21. e3
Qb4 22. b3 Bd7 23. Rb1 Rad8 24. Nde2 Bc8 25. g4 {Le Quang,L (2715)-Bruzon
Batista,L (2673)/Khanty-Mansiysk 2011/CBM 145/0-1 (66)}) (10... c6) 11. Qc2 {
[%emt 0:15:23]} (11. Nd5 $5 Nxd5 12. cxd5 {[%csl Rc7]}) 11... c6 {[%emt 0:08:
48][%csl Gd5]} 12. Na4 $5 $146 {[%emt 0:09:41][%cal Ga2a3]} (12. Rad1 Re8 13.
Ng5 Ne5 (13... Bxc3 14. Bxc3 Qxe2 15. Qxe2 Rxe2 16. Rxd6 $14) 14. Na4 Bg4 $11
15. h3 h6 16. Nf3 Bxf3 17. exf3 Ned7 18. f4 Qe2 19. Qxe2 Rxe2 20. Bf3 Rc2 21.
Rc1 Rxc1 22. Rxc1 Nc5 23. Nxc5 Bxc5 24. Bxc5 dxc5 25. Rc3 a4 26. Kg2 Rd8 {
Horvath,J (2530)-Jovanovic,S (2375)/Porec 1998/EXT 1999/1/2-1/2 (38)}) 12...
Re8 {[%emt 0:05:10]} 13. e3 {[%emt 0:02:07]} Bc5 {[%emt 0:19:02]} 14. Rad1 {
[%emt 0:04:06]} (14. Nxc5 {La suite logique de la nouveauté Na4} Nxc5 15. Rad1
$14 {[%csl Gd4,Rd6,Gg2][%cal Gf3h4,Gh4f5]}) 14... Ne4 {[%emt 0:07:53]} 15. Nd2
{[%emt 0:04:01]} Nxd2 {[%emt 0:08:51]} 16. Qxd2 {[%emt 0:04:50]} Ne5 {[%emt 0:
03:00]} 17. b3 {[%emt 0:05:30]} h5 $2 {[%emt 0:07:17]} (17... Bb4 $142 18. Qb2
$14 {[%cal Ga2a3]}) 18. Bxc5 $1 {[%emt 0:02:43]} (18. Nxc5 $143 dxc5 19. Bc3 a4
$132 {[%csl Ga8]}) 18... dxc5 {[%emt 0:00:05]} 19. Qd6 $1 {[%emt 0:00:32][%csl
Rc5]} Qxd6 {[%emt 0:03:14]} 20. Rxd6 {[%emt 0:00:04]} h4 {[%emt 0:03:00]} 21.
gxh4 $1 {[%emt 0:00:47] Probablement une mauvaise surprise pour les Noirs} (21.
Nxc5) 21... Kf8 {[%emt 0:00:26]} 22. h3 {[%emt 0:02:09]} (22. Rfd1 Ke7 23. Nxc5
) 22... Ng6 {[%emt 0:03:28]} 23. h5 $1 {[%emt 0:03:22]} Nh4 {[%emt 0:00:06]}
24. Rfd1 $32 {[%emt 0:00:53][%csl Ra8,Rb6,Rc5,Rc8] Non seulement les Noirs
sont en retard de développement mais ils peuvent difficilement contester le
contrôle de la colonne "d"} Rb8 {[%emt 0:06:51]} 25. h6 $5 {[%emt 0:03:46]
Après la simplification, les Blancs vont obtenir un P passé sur la colonne "h"}
(25. Nb6) 25... gxh6 {[%emt 0:01:31]} 26. Rxh6 {[%emt 0:00:26]} Nxg2 {[%emt 0:
00:09]} 27. Rh8+ {[%emt 0:00:47]} Ke7 {[%emt 0:00:05]} 28. Rxe8+ {[%emt 0:00:
08]} Kxe8 {[%emt 0:00:04]} 29. Kxg2 {[%emt 0:00:06][%csl Gh3]} b6 {[%emt 0:00:
42]} 30. Kg3 {[%emt 0:01:08]} Ke7 {[%emt 0:00:12]} 31. f3 {[%emt 0:03:00]} (31.
h4 $5 Be6 32. Rh1 {[%csl Gh1,Gh4]} b5 33. Nxc5 bxc4 34. Nxe6 Kxe6 35. bxc4 Kf6
36. Kf4 Rb2 37. h5 Kg7 38. a4 Rxf2+ 39. Ke5 {[%csl Rc6,Ge5,Rg7][%cal Ge5d6]}
Ra2 40. Kd6 Rxa4 41. c5 Re4 42. Kxc6 a4 43. h6+ Kh7 44. Kd5 $18 {[%csl Gc5]
[%cal Gc5c8]}) 31... Be6 {[%emt 0:01:03]} 32. Rd2 $1 {[%emt 0:02:01]
Anticipant l'ouverture de la colonne "b"} b5 {[%emt 0:00:59]} 33. Nxc5 {
[%emt 0:02:52]} bxc4 {[%emt 0:00:08]} 34. bxc4 {[%emt 0:00:15]} Bxc4 {[%emt 0:
00:17]} 35. Rc2 {[%emt 0:00:58]} Bf1 {[%emt 0:01:03]} 36. Nb3 {[%emt 0:02:18]}
(36. h4) 36... Rg8+ {[%emt 0:00:28]} 37. Kh2 $6 $138 {[%emt 0:01:37][%csl Rh2]
Trop passif} (37. Kf4 $142 Rh8 38. Nxa5 Bxh3 39. Nxc6+ {[%csl Ga2]}) 37... a4 {
[%emt 0:00:12]} 38. Nd4 {[%emt 0:00:23]} c5 {[%emt 0:00:09]} 39. Nf5+ {[%emt 0:
01:20]} Ke6 {[%emt 0:00:16]} 40. Nh6 {[%emt 0:00:00]} Rh8 $2 $138 {[%emt 0:00:
00] Il restait au GMI plus de 02 minutes pour jouer le 40ème coup et répondre
а tempo était une faute} (40... Rg6 $142 41. Rxc5 Rg2+ $1 {Illustrant non
seulement la différence entre les deux varaintes mais aussi le fait que 37.
Kh2 au lieu de Kf4 était imprécis.} 42. Kh1 Rxa2 $132 {[%csl Ga4,Rh1][%cal
Gf1h3]}) 41. Rxc5 {[%emt 0:04:50]} f6 {[%emt 0:11:56]} 42. Kg1 {[%emt 0:08:32]}
Be2 {[%emt 0:12:21]} 43. Rc6+ {[%emt 0:06:14]} Ke7 {[%emt 0:00:12]} 44. Nf5+ {
[%emt 0:01:20]} Kd7 {[%emt 0:00:10]} 45. Rd6+ $1 {[%emt 0:01:45]} Kc7 {[%emt 0:
00:23]} 46. Kg2 $18 {[%emt 0:04:56]} Bc4 {[%emt 0:05:09]} 47. Rd4 {[%emt 0:02:
12]} Be6 {[%emt 0:01:13]} 48. e4 {[%emt 0:00:21]} Bd7 {[%emt 0:00:50]} 49. h4 {
[%emt 0:01:12]} a3 {[%emt 0:02:50]} 50. Ne3 {[%emt 0:02:34]} Be6 {[%emt 0:00:
07]} 51. Kg3 {[%emt 0:01:15]} Rg8+ {[%emt 0:01:57]} 52. Kf4 {[%emt 0:01:48]}
Rh8 {[%emt 0:00:30]} 53. Nf5 {[%emt 0:00:51]} Ra8 {[%emt 0:00:17]} 54. Rd2 {
[%emt 0:00:15]} Rb8 {[%emt 0:00:44]} 55. Nd4 {[%emt 0:00:24]} Bf7 {[%emt 0:00:
35]} 56. Rd3 {[%emt 0:00:15]} 1-0